Cogmind - Beta 13 @@@ ROGUE MODE // 2024.04.21 @ 00:43:54 Player: DGSTER Result: Destroyed by P-60 Hacker with Shock Rifle Performance ------------- Evolutions (1) 500 Regions Visited (4) 800 Robots Destroyed (47) 235 Value Destroyed (2432) 2432 Prototype IDs (5) 100 Alien Tech Used (0) 0 Bonus (1129) 1129 TOTAL SCORE: 5196 Bonus ------- High Alert Combat Kills 208 Follower Combat Kills 368 Entered Garrisons 200 Used RIF Installer 500 Friendly Fire -147 Cogmind --------- Core Integrity 0/400 Matter 291/300 Energy 280/280 System Corruption 1% Temperature Cool (0) Movement Treading (160) Location -9/Garrison Parts ------- > --- POWER (1) -------- Cooled Ion Engine > --- PROPULSION (2) --- Light Treads Light Treads > --- UTILITY (4) ------ Medium Storage Unit Improved Targeting Computer > --- WEAPON (2) ------- Heavy Assault Rifle > --- INVENTORY (10) --- Aluminum Leg Aluminum Leg Improved Heat Sink Improved Targeting Computer Improved Targeting Computer Melee Analysis Suite Relay Coupler [Grunt] (29) Mini Grenade Launcher Katana Peak State ------------ > --- POWER ------------ Heavy Ion Engine > --- PROPULSION ------- Aluminum Leg Improved Aluminum Leg > --- UTILITY ---------- Improved Heat Sink Medium Storage Unit Targeting Computer Improved Targeting Computer > --- WEAPON ----------- Improved Medium Laser Improved Assault Rifle > --- INVENTORY -------- Improved Ion Engine Cooled Ion Engine Light Treads Light Treads Light Treads Melee Analysis Suite Medium Armor Plating Mining Claw Katana [Rating: 20] Favorites ----------- Power Heavy Ion Engine Engine Heavy Ion Engine Power Core Light Nuclear Core Propulsion Light Treads Treads Light Treads Leg Aluminum Leg Utility Improved Targeting Computer Device Improved Heat Sink Storage Medium Storage Unit Processor Improved Targeting Computer Protection Weapon Shielding Weapon Improved Assault Rifle Energy Gun Improved Medium Laser Ballistic Gun Improved Assault Rifle Launcher Mini Grenade Launcher Slashing Weapon Katana Build | -11 -10 -9 -9 -9 ------- Run | Yrd Mat Mat Sto Gar Slots Evolved 2 | . . 2 . . Power . | . . . . . Propulsion . | . . . . . Utility 2 | . . 2 . . Weapon . | . . . . . Parts Attached 62 | 6 2 3 24 27 Power 7 | 1 . . 2 4 Engine 6 | 1 . . 2 3 Core 1 | . . . . 1 Reactor . | . . . . . Propulsion 14 | 2 . . 6 6 Treads 10 | 2 . . 2 6 Leg 4 | . . . 4 . Wheel . | . . . . . Hover . | . . . . . Flight . | . . . . . Utility 12 | 1 1 2 5 3 Device 3 | . . 1 1 1 Storage 2 | 1 . . 1 . Processor 4 | . 1 . 3 . Hackware . | . . . . . Protection 3 | . . 1 . 2 Artifact . | . . . . . Weapon 29 | 2 1 1 11 14 Energy Gun 1 | . . . 1 . Energy Cannon . | . . . . . Ballistic Gun 19 | 2 1 1 6 9 Ballistic Cannon . | . . . . . Launcher 3 | . . . . 3 Special Weapon . | . . . . . Impact Weapon . | . . . . . Slashing Weapon 6 | . . . 4 2 Piercing Weapon . | . . . . . Special Melee Weapon . | . . . . . Unidentified Prototypes 2 | . . . 2 . Parts Lost 15 | . . 1 7 7 Power 3 | . . . 1 2 Propulsion 2 | . . . 2 . Utility 6 | . . . 2 4 Weapon 4 | . . 1 2 1 Highest Loss Streak 4 | . . 1 2 4 To Critical Strikes . | . . . . . Average Slot Usage (%) 92 | . 92 100 97 84 Engine 9 | . 14 11 10 8 Treads 17 | . 28 22 10 21 Leg 4 | . . . 10 . Device 6 | . . 11 10 1 Storage 11 | . 14 11 10 11 Processor 18 | . 7 11 20 19 Protection 1 | . . 11 1 1 Energy Gun 2 | . . . 5 . Ballistic Gun 17 | . 27 22 13 17 Slashing Weapon 1 | . . . 1 1 Naked Turns . | . . . . . Heaviest Build 31 | 12 13 16 25 31 Greatest Support 40 | 40 40 40 40 40 Greatest Overweight (x) 2 | . . . 2 . Average Overweight (x) . | . . . . . Largest Inventory Capacity 10 | 8 8 8 10 10 Average Capacity 9 | 7 8 8 9 10 Most Carried 10 | 3 6 6 10 10 Average Carried 7 | . 4 4 8 9 Final Capacity 10 | 8 8 8 10 10 Final Carried 9 | 1 6 4 9 9 Class Distribution -------------------- 62% | Mutant 29% | Scavenger-Mutant 7% | Commander-Mutant Dominant Class ---------------- Mutant | -10/Materials Mutant | -9/Materials Mutant | -9/Storage Scavenger-Mutant | -9/Garrison Resources | -11 -10 -9 -9 -9 ----------- Run | Yrd Mat Mat Sto Gar Matter Collected 1513 | 236 118 56 499 604 Remotely 383 | . . 56 327 . Salvage Created 1868 | . 286 51 816 715 Parts 114 | . 17 1 51 45 Haulers Intercepted 1 | . 1 . . . Recyclers Shooed . | . . . . . Parts Field Recycled . | . . . . . Retrieved Matter . | . . . . . Parts Self-Destructed . | . . . . . Prevented . | . . . . . Kills | -11 -10 -9 -9 -9 ------- Run | Yrd Mat Mat Sto Gar Combat Hostiles Destroyed 42 | . 7 1 16 18 Melee 4 | . . . 2 2 Guns 37 | . 7 1 14 15 AOE 1 | . . . . 1 Classes Destroyed 8 | . 3 1 3 1 Worker 2 | . . . 2 . Hauler 1 | . 1 . . . Recycler 1 | . . . 1 . Swarmer 10 | . 3 . 3 4 Grunt 16 | . 4 . 4 8 Duelist 2 | . . . 1 1 Sentry 14 | . . 1 8 5 Hunter 1 | . . . . 1 Best Kill Streak 4 | . 3 1 3 4 Combat Bots Only 4 | . 3 1 2 4 Max Kills in Single Turn 2 | . 1 1 2 2 Gunslinging 1 | . . . 1 . Exploded 1 | . . . . 1 Melee 1 | . . . 1 1 Uniques/NPCs Destroyed . | . . . . . Combat | -11 -10 -9 -9 -9 -------- Run | Yrd Mat Mat Sto Gar Hostile Shots Fired 271 | . 33 12 96 130 Missed 65 | . 10 3 28 24 Damage Taken 2667 | . 271 178 855 1363 Core 432 | . 18 25 166 223 Absorbed by Shields . | . . . . . Redirected to Shielding 50 | . . 32 18 . Core Remaining (%) 96 | 100 92 . . . Volleys Fired 131 | . 20 7 53 51 Largest 2 | . 2 2 2 2 Hottest 79 | . 40 43 79 53 Shots Fired 248 | . 40 14 99 95 Gun 244 | . 40 14 99 91 Cannon . | . . . . . Launcher 4 | . . . . 4 Special . | . . . . . Kinetic 224 | . 40 14 79 91 Thermal 20 | . . . 20 . Explosive 4 | . . . . 4 Electromagnetic . | . . . . . Robot Hit Streak 38 | . 8 6 16 38 Robot Miss Streak 2 | . 2 2 2 2 Penetration Max . | . . . . . Secondary Targets 3 | . . . 3 . Max Gunslinging Chain 1 | . . . 1 . Shots Hit Robots 193 | . 26 9 72 86 Core Hits 71 | . 13 2 27 29 Critical Kills . | . . . . . Critical Parts Destroyed 1 | . . . 1 . Critical Strikes 2 | . . . 2 . Burn 1 | . . . 1 . Destroy 1 | . . . 1 . Melee Attacks 34 | . . . 15 19 Impact . | . . . . . Slashing 34 | . . . 15 19 Piercing . | . . . . . Sneak Attacks 2 | . . . 1 1 Combat Hostiles . | . . . . . Follow-up Attacks . | . . . . . Damage Inflicted 3441 | . 265 95 1274 1807 Guns 2481 | . 265 95 1057 1064 Cannons . | . . . . . Explosions 195 | . . . . 195 Melee 737 | . . . 189 548 Ramming 28 | . . . 28 . Kinetic 2245 | . 265 95 821 1064 Thermal 236 | . . . 236 . Explosive 195 | . . . . 195 Electromagnetic . | . . . . . Impact . | . . . . . Slashing 737 | . . . 189 548 Piercing . | . . . . . Highest Corruption 1 | . . . . 1 Average Corruption 1 | . . . . 1 Corruption Purged . | . . . . . Corruption Blocked . | . . . . . Effects 13 | . . . . 13 Matter Fused 6 | . . . . 6 Heat Flow Errors 4 | . . . . 4 Energy Discharges 1 | . . . . 1 Parts Rejected 1 | . . . . 1 Data Loss (minor) 1 | . . . . 1 Overload Shots . | . . . . . Overflow Damage 23 | . . . 16 7 Projectiles . | . . . . . Explosions 3 | . . . . 3 Melee 20 | . . . 16 4 Knockbacks 1 | . . . 1 . Impact 1 | . . . 1 . Kinetic . | . . . . . Secondary . | . . . . . Self-Inflicted Damage 31 | . . . . 31 Shots 1 | . . . . 1 Rammed 3 | . . . 3 . Targets Rammed 7 | . . . 7 . Kicked 4 | . . . 4 . Crushed . | . . . . . Highest Temperature 259 | . 27 7 45 259 Average Temperature 47 | . 13 4 14 66 Received Heat Transfer 885 | . 135 48 216 486 Effects 1 | . . . . 1 Interference 1 | . . . . 1 Siege Activations . | . . . . . Robots Corrupted . | . . . . . Combat Hostiles . | . . . . . Parts Fried . | . . . . . Impact Corruptions . | . . . . . Robots Melted . | . . . . . Combat Hostiles . | . . . . . Parts Melted 5 | . . . 4 1 Heat Transferred 592 | . . . 592 . Parts Sabotaged . | . . . . . Parts Stolen . | . . . . . Parts Stripped . | . . . . . Power Chain Reactions . | . . . . . Alert | -11 -10 -9 -9 -9 ------- Run | Yrd Mat Mat Sto Gar Peak Influence 1255 | . 189 98 302 1255 Initial 76 | . . 33 40 76 Average 365 | . 73 44 148 779 Maximum Alert Level 4 | . . . 1 4 Low Security (%) 61 | 100 100 100 88 10 Level 1 8 | . . . 11 7 Level 2 4 | . . . . 11 Level 3 20 | . . . . 55 Level 4 5 | . . . . 15 Level 5 . | . . . . . High Security . | . . . . . Max Security . | . . . . . Squads Dispatched 3 | . 1 1 1 . Investigation 1 | . . . 1 . Extermination . | . . . . . Reinforcement 2 | . 1 1 . . Assault . | . . . . . Garrison . | . . . . . Intercept . | . . . . . Searches Triggered . | . . . . . Construction Impeded . | . . . . . Haulers Reinforced . | . . . . . Active Scanning Responses . | . . . . . Cargo Convoy Interrupts . | . . . . . Stealth | -11 -10 -9 -9 -9 --------- Run | Yrd Mat Mat Sto Gar Distress Signals 5 | . 2 1 2 . Communications Jammed . | . . . . . Distress Signals . | . . . . . Times Spotted 76 | . 11 7 27 31 Peak Tracking Total 9 | . 6 3 4 9 Tactical Retreats 5 | . 1 . 4 . Traps | -11 -10 -9 -9 -9 ------- Run | Yrd Mat Mat Sto Gar Traps Triggered 3 | . . . 1 2 Indirectly . | . . . . . Trap Hack Attempts . | . . . . . Triggered . | . . . . . Disarmed . | . . . . . Reprogrammed . | . . . . . Reused . | . . . . . Traps Extracted . | . . . . . Installed . | . . . . . Triggered . | . . . . . Machines | -11 -10 -9 -9 -9 ---------- Run | Yrd Mat Mat Sto Gar Machines Disabled 8 | . . . 2 6 Max in Single Turn 1 | . . . 1 1 Garrison Relay 4 | . . . . 4 Phase Generator 1 | . . . . 1 Machines Repaired . | . . . . . Machines Dismantled . | . . . . . Machines Sabotaged . | . . . . . Overloaded Fab Kills . | . . . . . Hacking | -11 -10 -9 -9 -9 --------- Run | Yrd Mat Mat Sto Gar Machines Accessed 15 | . 2 1 8 4 Terminals 14 | . 2 1 7 4 Fabricators . | . . . . . Repair Stations . | . . . . . Recycling Units . | . . . . . Scanalyzers . | . . . . . Garrison Access 1 | . . . 1 . Total Hacks 38 | . 6 2 21 9 Successful 17 | . 3 1 12 1 Failed 21 | . 3 1 9 8 Catastrophic 4 | . . . 2 2 Database Lockouts . | . . . . . Manual 4 | . 3 . 1 . Terminals 36 | . 6 2 19 9 Fabricators . | . . . . . Repair Stations . | . . . . . Recycling Units . | . . . . . Scanalyzers . | . . . . . Garrison Access 2 | . . . 2 . Terminal Hacks 16 | . 3 1 11 1 Prototype ID Bank 2 | . 1 . 1 . Open Door 3 | . . . 2 1 Level Access Points 1 | . 1 . . . Branch Access Points 1 | . 1 . . . Emergency Access Points 1 | . . . 1 . Alert Level 2 | . . . 2 . Locate Traps 2 | . . 1 1 . Hauler Manifests 1 | . . . 1 . Registered Components 1 | . . . 1 . Zone Layout 2 | . . . 2 . Fabricator Hacks . | . . . . . Repair Station Hacks . | . . . . . Recycling Unit Hacks . | . . . . . Scanalyzer . | . . . . . Garrison Access Hacks 1 | . . . 1 . Unlock Access 1 | . . . 1 . Unauthorized Hacks . | . . . . . Terminals . | . . . . . Fabricators . | . . . . . Repair Stations . | . . . . . Recycling Units . | . . . . . Scanalyzers . | . . . . . Garrison Access . | . . . . . Data Cores Recovered . | . . . . . Used . | . . . . . Hacking Detections 14 | . 1 1 8 4 Full Trace Events 6 | . 1 . 2 3 Feedback Events 1 | . . . . 1 Corruption 1 | . . . . 1 Feedback Blocked . | . . . . . Robot Schematics Acquired . | . . . . . Robots Built . | . . . . . Authchips . | . . . . . Time . | . . . . . Total Robot Build Rating . | . . . . . Part Schematics Acquired . | . . . . . Parts Built . | . . . . . Authchips . | . . . . . Time . | . . . . . Total Part Build Rating . | . . . . . Parts Repaired . | . . . . . Time . | . . . . . Parts Recycled . | . . . . . Recycled Matter . | . . . . . Retrieved Matter . | . . . . . Retrieved Components . | . . . . . Parts Scanalyzed . | . . . . . Part Schematics Acquired . | . . . . . Parts Damaged . | . . . . . Bothacking | -11 -10 -9 -9 -9 ------------ Run | Yrd Mat Mat Sto Gar Used RIF Installer 1 | . . . . 1 Robots Hacked . | . . . . . Non-combat . | . . . . . Combat . | . . . . . Robot Hacks Applied . | . . . . . Relay Couplers Released 16 | . . . . 16 Machine Destruction 16 | . . . . 16 Fabnet Peak Effective % . | . . . . . Robots Rewired 3 | . . . 1 2 Allies Hacked . | . . . . . Hacks Repelled . | . . . . . Allies | -11 -10 -9 -9 -9 -------- Run | Yrd Mat Mat Sto Gar Total Allies 12 | . . . 10 2 Largest Group 10 | . . . 10 3 Highest-Rated Group 88 | . . . 88 40 Highest-Rated Ally 20 | . . . 16 20 Total Orders 3 | . . . . 3 ROAM 2 | . . . . 2 FOLLOW 1 | . . . . 1 Ally Attacks 124 | . . . 61 63 Total Damage 1095 | . . . 505 590 Kills 18 | . . . 8 10 Allies Corrupted . | . . . . . Allies Melted . | . . . . . Intel | -11 -10 -9 -9 -9 ------- Run | Yrd Mat Mat Sto Gar Robot Analysis Total . | . . . . . Derelict Logs Recovered . | . . . . . Drone Launches . | . . . . . Drone Recoveries . | . . . . . Exploration | -11 -10 -9 -9 -9 ------------- Run | Yrd Mat Mat Sto Gar Turns Passed 3840 | 59 440 176 1750 1415 Spaces Moved 1891 | 33 226 94 836 702 Core 5 | 5 . . . . Treads 1533 | 28 226 94 483 702 Legs 353 | . . . 353 . Wheels . | . . . . . Hover . | . . . . . Flight . | . . . . . Fastest Speed 50 | 50 160 160 120 160 Average Speed 164 | 143 160 160 170 160 Slowest Speed 260 | 160 160 160 260 160 Overloaded Moves . | . . . . . Propulsion Burnouts . | . . . . . Robots Hopped . | . . . . . Cave-ins Triggered . | . . . . . Exploration Rate (%) 46 | 3 48 12 91 80 Regions Visited 4 Branch Regions 1 Pre-discovered Areas . | . . . . . Known Exits Taken 2 | . 1 . 1 . Unknown Exits Taken 2 | 1 . 1 . . Scrap Searched . | . . . . . Spaces Dug . | . . . . . Terrain Destroyed 87 | . . . . 87 Melee . | . . . . . Projectile 1 | . . . . 1 AOE 86 | . . . . 86 Terrain Rammed . | . . . . . Walls Destroyed . | . . . . . Machines Disabled . | . . . . . Actions | -11 -10 -9 -9 -9 --------- Run | Yrd Mat Mat Sto Gar Total 2345 | 45 270 108 1052 870 Wait 104 | . 15 4 61 24 Move 1887 | 32 225 93 835 702 Hop . | . . . . . Pick Up 62 | 7 7 1 29 18 Fast Attach . | . . . . . Attach 41 | 6 2 3 19 11 Detach 5 | . . . 3 2 Swap 21 | . . . 5 16 Drop 30 | . 1 . 16 13 Fire 131 | . 20 7 53 51 Melee 33 | . . . 14 19 Ram . | . . . . . Kick 4 | . . . 4 . Crush 3 | . . . 3 . Escape Stasis 5 | . . . 5 . Rewire 19 | . . . 5 14 Trap . | . . . . . Miscellaneous . | . . . . . Route ------- -11/Scrapyard -10/Materials (discovered 4 exits: *Mat x3 / *Min) -9/Materials -9/Storage (discovered 2 exits: [*Mat] / Gar) -9/Garrison (discovered 2 exits: [*Rec x2]) History --------- Turn | Location | Event 27 | -11/Scrapyard | Discovered new exit (range 16) 60 | -11/Scrapyard | Entered Materials 107 | -10/Materials | Identified exit to Mines 107 | -10/Materials | Identified exit to Materials 301 | -10/Materials | Build established: Mutant 500 | -10/Materials | Entered another Materials area 500 | -9/Materials | Evolved 2 slots: Utility x2 652 | -9/Materials | Discovered new exit (range 11) 676 | -9/Materials | Entered Storage 1487 | -9/Storage | Assisted by bots powering up and referring to "LRC-V3" 1519 | -9/Storage | Identified exit to Garrison 1658 | -9/Storage | Discovered new exit (range 3) 1726 | -9/Storage | Lost 3 allies 2426 | -9/Storage | Entered Garrison 2426 | -9/Garrison | Accompanied by 3 allies 2457 | -9/Garrison | Installed Relay Interface Framework 2490 | -9/Garrison | Triggered checkpoint 2514 | -9/Garrison | Garrison Relay disabled 2618 | -9/Garrison | Triggered checkpoint 2628 | -9/Garrison | Core integrity fell below 50% 2636 | -9/Garrison | Triggered checkpoint 2678 | -9/Garrison | Triggered checkpoint 2700 | -9/Garrison | Triggered checkpoint 2751 | -9/Garrison | Triggered checkpoint 2841 | -9/Garrison | Phase Generator disabled 2910 | -9/Garrison | Discovered new exit (range 12) 2928 | -9/Garrison | Triggered checkpoint 3124 | -9/Garrison | Triggered checkpoint 3224 | -9/Garrison | Garrison Relay disabled 3295 | -9/Garrison | Build established: Scavenger-Mutant 3406 | -9/Garrison | Discovered new exit (range 10) 3460 | -9/Garrison | Core integrity fell below 20% 3504 | -9/Garrison | Garrison Relay disabled 3604 | -9/Garrison | Lost 4 parts (1p2u1w) 3814 | -9/Garrison | Garrison Relay disabled 3841 | -9/Garrison | Destroyed by P-60 Hacker with Shock Rifle Last Messages --------------- Acquired 10 matter. Acquired Lgt. Treads. System corrupted: Heat flow error (+171). System corrupted: Heat flow error (+151). Acquired Lgt. Treads. Dropped Lgt. Treads. L-31 Rogue destroyed. System corrupted: Matter fused (-5). Acquired 34 matter. Acquired Melee Analysis Suite. Acquired Aluminum Leg. Acquired 10 matter. System corrupted: Energy discharge (-61). Garrison Relay disabled. Relay Coupler [NC] tumbles out of relay unit. Relay Coupler [Swarmer] tumbles out of relay unit. Acquired 3 matter. System corrupted: Matter fused (-9). Map ----- +----------------------------------------------------+ | | | ?????????????????????????????????????????????????? | | ?????????????????????????????????????????????????? | | ?????????????????????????????????????????????????? | | ?????????????????????????????????????????????????? | | ?????????????????????????????????????????????????? | | ?????????????????????????????????????????????????? | | ?????????????????????????????????????????????????? | | ?????????????????????????????????????????????????? | | ?????????????????????????????????????????????????? | | ?????????????????????????????????????????????????? | | ?????????????????????????????????????????????????? | | ?????????????????????????????????????????????????? | | ?????????????????????????????????????????????????? | | ?????????????????????????????????????????????????? | | ?????????????????????????????????????????????????? | | ?????????????????????????????????????????????????? | | ?????????????????????????????????????????????????? | | ?????????????????????????????????????????????????? | | ?????????????????????????????????????????????????? | | ?????????????????????????????????????????????????? | | ?????????????????????????????????????????????????? | | ??????????????#??????????????????????????????????? | | ??????????????# ?????????????????? ????????? | | ??????????????# ########### p????????? | | ?????????#????# @ ????????? | | ????????# b######## #???????????????? | | ????????? ##### #### #????????????????????????? | | ????????? ????# #??# ###??????????????????????? | | ????????? ????# #??# #??????????????????????? | | ????????? ????# #??#% #??????????????????????? | | ????????? ????# #??#= #??????????????????????? | | ????????# #???# #??# ###??????????????????????? | | ????????# #???# #??# #????????????????????????? | | ????????# #???# #??# #????????????????????????? | | ????????# #???# #??# ###??????????????????????? | | ????????# #???# #??# #"#??????????????????????? | | ????????# #???# #??# ! #??????????????????????? | | ????????# #???# #### !"#??????????????????????? | | ?????#### #####^ ^ !"#??????????????????????? | | ?????# #"#??????????????????????? | | ####?# ######## #########??????????????????????? | | % #?# #??????# #??????????????????????????????? | | = ### ######## #??????????????????????????????? | | #??????????????????????????????? | | #??????????????????????????????? | | #??????????????????????????????? | | ## ###########??????????????????????????????? | | ## % ###??????????????????????????????????????? | | %#??????????????????????????????????????? | +----------------------------------------------------+ Best States ------------- Heat Dissipation 42 Energy Generation 14 Energy Capacity 280 Matter Stores 300 Matter Capacity 300 Sight Range 16 Terrain Scan Density 10 Armor Coverage 225 Weapon Shielding 33 Evasion (%) 45 Targeting Accuracy 12 Recoil Reduction 2 Item Schematics ----------------- None Robot Schematics ------------------ None Fabricated ------------ Nothing Alien Tech Used ----------------- None Achievements -------------- A New Friend Challenges ------------ None Game ------ Seed OmegaMakeshiftLance Manual? 0 Play Time 00:34:11 Cumulative 14.6 hours Start 2024.04.19 @ 22:38:01 End 2024.04.21 @ 00:43:54 Sessions 3 Manual Loads 0 Difficulty Rogue Special Mode None Game No. 16 Rogue 15 Adventurer 1 Explorer 0 Win Type - Total 0 Types 0/0/0/0/0/0/0/0/0 Lore% 22 Gallery% 24 Achievement% 22 Wizard Run 0 Options --------- Layout 1 ASCII 0 Keyboard 0 Movement Numpad Keybinds 0 Fullscreen 1 Font 24/Smallcaps Map View 50x35 Zoom Use 0% Tactical HUD 0 Map Filters NONE Filters NONE Steam 1 RUN: e9a704df-cd68-4bfb-8de5-986b7f347cdf